{"text_format":"1","workbook":"xlsx","n_sheets":2,"sheets":["Ficha","Cadro Plan de melloras"],"not_rendered":{"charts":0,"images":1,"macros":1,"external_links":0,"defined_names":1,"comments":0,"pivot_tables":0},"unopened":[],"bounds":{"document_bytes":16777216,"sheet_cells":100000,"rows_first":2000,"rows_last":500,"rows_between":2000,"halvings":0,"cell_chars":16384,"cell_head_chars":4096},"cells_cut":0,"cells_raw":0,"read":"whole","date_system":"1900"}

{"sheet":"Ficha","index":0,"n_rows":27,"n_cols":10,"rows_kept":27,"cut":false,"hidden":false,"merged":[[1,0,1,1],[20,0,20,1]]}
[null,"Área de Apoio á Docencia e Calidade",null,null,null,null,"Renovación da acreditación das titulacións oficiais","Realizada","Universidade","Facultade de Ciencias"]
["Ficha de Mellora",null,null,null,null,null,"Seguimento anual das titulacións","Realizada parcialmente","Centro","Facultade de Historia"]
["CENTRO",null,null,null,null,null,"Certificación da implantación do Sistema de Garantía de CALIDADE","Planificada","Titulación","Facultade de Dereito"]
["Nº de Ficha de mellora",null,null,null,null,null,"SGIC (Revisión pola dirección)","Pendente",null,"Facultade de CC. Empresariais e do Turismo"]
["Curso académico no que se formula a acción",null,null,null,null,null,"Outros",null,null,"Facultade de CC. da Educación"]
["Programa de calidade asociado",null,null,null,null,null,null,null,null,"Escola Superior de Enxeñaría Informática"]
["Criterio do programa ao que se asocia",null,null,null,null,null,null,null,null,"Escola de Enfermaría (Ou)"]
["Ámbito de aplicación",null,null,null,null,null,null,null,null,"Facultade de Belas Artes"]
["Titulación (sempre que o alcance sexa titulación)",null,null,null,null,null,null,null,null,"Facultade de CC. da Educación e do Deporte"]
["Denominación da acción de mellora",null,null,null,null,null,null,null,null,"Escola de Enxeñaría Forestal"]
["Punto débil / Análise das causas",null,null,null,null,null,null,null,null,"Facultade de CC. Sociais e da Comunicación"]
["Obxectivos",null,null,null,null,null,null,null,null,"Facultade de Fisioterapia"]
["Actuacións a desenvolver",null,null,null,null,null,null,null,null,"Escola de Enfermaría (Po)"]
["Data límite para a súa execución",null,null,null,null,null,{"$f":"IF(B14=\"\",\"\",IF(B14<TODAY(),0,IF(B14>TODAY(),2,1)))","v":""},null,null,"Centro Universitario da Defensa"]
["Recursos / financiamento",null,null,null,null,null,null,null,null,"Facultade de Filoloxía"]
["Responsable da súa aplicación",null,null,null,null,null,null,null,null,"Facultade de Bioloxía"]
["Responsable do seguimento",null,null,null,null,null,null,null,null,"Facultade de CC. Económicas e Empresariais"]
["Data para realizar o seguimento",null,null,null,null,null,{"$f":"+IF(B14=\"\",\"\",IF(B18=\"\",\"\",IF(B18>=B14,0,\"\")))","v":""},null,null,"Escola de Enxeñaría Industrial"]
["Indicadores de execución ou evidencias documentais da súa implantación",null,null,null,null,null,null,null,null,"Escola de Enxeñaría de Telecomunicación"]
["OBSERVACIÓNS",null,null,null,null,null,null,null,null,"Escola de Estudos Empresariais"]
["Revisión / Valoración da acción de mellora",null,null,null,null,null,null,null,null,"Escola Técnica Superior de Enxeñaría de Minas"]
["Estado / Nivel de cumprimento",null,null,null,null,null,{"$f":"+IF(B22=\"\",\"\",IF(B22=\"Realizada\",3,IF(B22=\"Realizada parcialmente\",2,IF(B22=\"Planificada\",1,0))))","v":""},null,null,"Facultade de Ciencias do Mar"]
["Resultados obtidos",null,null,null,null,null,null,null,null,"Facultade Química"]
["Grado de satisfacción",null,null,null,null,null,null,null,null,"Escola de Maxisterio \"María Sedes Sapientae\""]
["Accions correctoras a desenvolver",null,null,null,null,null,null,null,null,"Escola de Enfermaría (Meixoeiro)"]
["Responsable da revisión",null,null,null,null,null,{"$f":"+IF(B26=\"\",\"\",IF(B26=\"Realizada\",3,IF(B26=\"Realizada parcialmente\",2,IF(B26=\"Planificada\",1,0))))","v":""},null,null,"Escola de Enfermaría (Povisa)"]
["Data da revisión",null,null,null,null,null,{"$f":"+IF(B27=\"\",\"\",IF(B27=\"Realizada\",3,IF(B27=\"Realizada parcialmente\",2,IF(B27=\"Planificada\",1,0))))","v":""},null,null,"Escola de Negocios Afundación"]

{"sheet":"Cadro Plan de melloras","index":1,"n_rows":38,"n_cols":36,"rows_kept":38,"cut":false,"hidden":false,"merged":[[3,0,3,17],[2,0,2,23],[3,18,3,23],[1,20,1,23]]}
[null,null,null,null,null,null,null,null,null,null,null,null,null,null,null,null,null,null,null,null,null,null,null,null,null,null,null,null,null,null,null,null,null,"Renovación da acreditación das titulacións oficiais","Planificada","Universidade"]
[null,null,null,null,null,null,null,null,null,null,null,null,null,null,null,null,null,null,null,null,"Área de Calidade",null,null,null,null,null,null,null,null,null,null,null,null,"Seguimento anual das titulacións","Realizada parcialmente","Centro"]
["Cadro de seguimento do plan de melloras",null,null,null,null,null,null,null,null,null,null,null,null,null,null,null,null,null,null,null,null,null,null,null,null,null,null,null,null,null,null,null,null,"Certificación da implantación do Sistema de Garantía de CALIDADE","Realizada","Títulación"]
["Ficha de mellora",null,null,null,null,null,null,null,null,null,null,null,null,null,null,null,null,null,"Revisión / Valoración da acción de mellora",null,null,null,null,null,null,null,null,null,null,null,null,null,null,"SGIC (Revisión pola dirección)","Pendente"]
["CENTRO","Nº de Ficha de mellora","Curso académico no que se formula a acción","Programa de calidade asociado","Criterio do programa ao que se asocia","Ámbito de aplicación","Titulación (sempre que o alcance sexa titulación)","Denominación da acción de mellora","Punto débil / Análise das causas","Obxectivos","Actuacións a desenvolver","Data límite para a súa execución","Recursos / financiamento","Responsable da súa aplicación","Responsable do seguimento","Data para realizar o seguimento","Indicadores de execución ou evidencias documentais da súa implantación","Observacións","Estado / Nivel de cumprimento","Resultados obtidos","Grao de satisfacción","Accions correctoras a desenvolver","Responsable da revisión","Data da revisión",null,null,null,null,null,null,null,null,null,"Outros"]
["Escola de Enfermaría (Po)",33,"2014-2015","SGIC (Revisión pola dirección)",3,"Centro",null,"Reorganizar a páxina web no referente a calidade","Non toda a información dispoñible na web, está a ctualizada ",null,null,"2015-12-31",null,null,null,"2015-12-01",null,null,"Planificada",null,null,null,null,null,null,null,null,null,null,null,null,null,{"$f":"IF(L6=\"\",\"\",IF(AND(L6>TODAY(),S6=\"\"),3,IF(AND(L6<TODAY(),S6=\"\"),0,IF(AND(L6>TODAY(),AH6<=2),3,IF(AND(L6<=TODAY(),AH6<=2),0,IF(S6=\"\",\"\"))))))","v":0},{"$f":"+IF(S6=\"\",\"\",IF(S6=\"Realizada\",3,IF(S6=\"Realizada parcialmente\",2,IF(S6=\"Planificada\",1,0))))","v":1},{"$f":"+IF(L6=\"\",\"\",IF(P6=\"\",\"\",IF(P6>=L6,0,\"\")))","v":""}]
["Escola de Enfermaría (Po)",32,"2014-2015","SGIC (Revisión pola dirección)",7,"Centro","Grao en Fisioterapia","Aumentar o grado de satisfacción do alumnado con desenrolo e planificación da ensinanza",null,null,"Continuar coas accións do PAT e de Coordinación horizontal e vertical. Seguir realizando reunións co alumnado para que realicen contribucións. Recuperar tamaño medio do grupo e os recoñecementos docentes no POD","2016-07-31","Programación de reunións","Coordinador vertical, Coordinador PAT\nComisión de calidade\nDecanato Vicerrectorado de profesorado","Comisión de Calidade",null,null,null,null,null,null,null,null,null,null,null,null,null,null,null,null,null,{"$f":"IF(L11=\"\",\"\",IF(AND(L11>TODAY(),S7=\"\"),3,IF(AND(L11<TODAY(),S7=\"\"),0,IF(AND(L11>TODAY(),AH7<=2),3,IF(AND(L11<=TODAY(),AH7<=2),0,IF(S7=\"\",\"\"))))))","v":""},{"$f":"+IF(S7=\"\",\"\",IF(S7=\"Realizada\",3,IF(S7=\"Realizada parcialmente\",2,IF(S7=\"Planificada\",1,0))))","v":""},{"$f":"+IF(L11=\"\",\"\",IF(P7=\"\",\"\",IF(P7>=L11,0,\"\")))","v":""}]
["Escola de Enfermaría (Po)",31,"2014-2015","Seguimento anual das titulacións",4,"Centro","Grao en Fisioterapia","Contar cun técnico de calidade no Campus de Pontevedra","Insuficientes recursos humanos en canto a persoal técnico de Calidade","A presencia dun técnico no Campus facilitaría o funcionamento das Comisións de Calidade do Campus","Propor a Vicerreitoría competente que se conte con esta figura","2015-07-31",null,"Área de Apoio á Docencia e Calidade","Comisión de Calidade","2015-11-13","Informes das diferentes reunións mantidas cos diferentes grupos de interese",null,"Realizada","Os resultados foron positivos ainda que non tódolos colectivos asistiron na sua totalidade",null,null,null,"2015-11-13",null,null,null,null,null,null,null,null,{"$f":"IF(L9=\"\",\"\",IF(AND(L9>TODAY(),S8=\"\"),3,IF(AND(L9<TODAY(),S8=\"\"),0,IF(AND(L9>TODAY(),AH8<=2),3,IF(AND(L9<=TODAY(),AH8<=2),0,IF(S8=\"\",\"\"))))))","v":false},{"$f":"+IF(S8=\"\",\"\",IF(S8=\"Realizada\",3,IF(S8=\"Realizada parcialmente\",2,IF(S8=\"Planificada\",1,0))))","v":3},{"$f":"+IF(L9=\"\",\"\",IF(P8=\"\",\"\",IF(P8>=L9,0,\"\")))","v":0}]
["Escola de Enfermaría (Po)",30,"2014-2015","Seguimento anual das titulacións",3,"Titulación","Grao en Fisioterapia","Revisar os obxetivos de Calidade e desenvolvemento dos procedementos que no o estean dun xeito efectivo","Detectouse que algúns dos obxetivos de calidade non son medibles ou alcanzables. Detectáronse procedementos non despregados",null,"Implantación de novos obxetivos e desenvolver tódolos procedementos do SGC","2015-07-31",null,"Comisión e Área de Calidade","Comisión de calidade","2015-11-13",null,"Trasladouse o escrito a vicerreitoría pero aínda non se obtivo resposta. Pendiente de RPT","Realizada parcialmente",null,"Baixo","Volver a trasladar a petición","Comisión de Calidade","2015-11-13",null,null,null,null,null,null,null,null,{"$f":"IF(L11=\"\",\"\",IF(AND(L11>TODAY(),S9=\"\"),3,IF(AND(L11<TODAY(),S9=\"\"),0,IF(AND(L11>TODAY(),AH9<=2),3,IF(AND(L11<=TODAY(),AH9<=2),0,IF(S9=\"\",\"\"))))))","v":""},{"$f":"+IF(S9=\"\",\"\",IF(S9=\"Realizada\",3,IF(S9=\"Realizada parcialmente\",2,IF(S9=\"Planificada\",1,0))))","v":2},{"$f":"+IF(L11=\"\",\"\",IF(P9=\"\",\"\",IF(P9>=L11,0,\"\")))","v":""}]
["Escola de Enfermaría (Po)",29,"2014-2015","Certificación da implantación do Sistema de Garantía de CALIDADE",null,"Centro","Grao En Fisoterapia","”","Non se evidencia unha correcta implantación do procedemento PE01 respecto da revisión da política e os obxetivos de calidade da Facultade. En relación as obxetivos de calidade no se lograron evidenciar que estén definidos de forma concreta, que sean alcanzables, medibles e motivadores e  non se evidencia o establecimento de indicadores válidos para seu seguimiento.",null,"Modificar e aprobar os cambios nos obxetivos de calidade. Ampliar o Plan de Mellora do Centro.Dotar aos objetivos de indicadores válidos para seu seguimento.\n",null,null,"Comisión de Calidade","Comisión de Calidade",null,null,null,null,null,null,null,null,null,null,null,null,null,null,null,null,null,{"$f":"IF(L39=\"\",\"\",IF(AND(L39>TODAY(),S10=\"\"),3,IF(AND(L39<TODAY(),S10=\"\"),0,IF(AND(L39>TODAY(),AH10<=2),3,IF(AND(L39<=TODAY(),AH10<=2),0,IF(S10=\"\",\"\"))))))","v":""},{"$f":"+IF(S10=\"\",\"\",IF(S10=\"Realizada\",3,IF(S10=\"Realizada parcialmente\",2,IF(S10=\"Planificada\",1,0))))","v":""},{"$f":"+IF(L39=\"\",\"\",IF(P10=\"\",\"\",IF(P10>=L39,0,\"\")))","v":""}]
["Escola de Enfermaría (Po)",28,"2014-2015",null,6,null,"Graduado/a en Enfermaría pola Universidade de Vigo","Recoller ás modificación non sustanciais a realizar no titulo","No informe aparace que hay que revisar….","facer unha proposta para o arranxo da horqullia da ponderación das materias que no informe se sinalan",null,null,null,null,null,null,null,null,null,null,null,null,null,null,null,null,null,null,null,null,null,null,{"$f":"IF(L12=\"\",\"\",IF(AND(L12>TODAY(),S11=\"\"),3,IF(AND(L12<TODAY(),S11=\"\"),0,IF(AND(L12>TODAY(),AH11<=2),3,IF(AND(L12<=TODAY(),AH11<=2),0,IF(S11=\"\",\"\"))))))","v":""},"",{"$f":"+IF(L12=\"\",\"\",IF(P11=\"\",\"\",IF(P11>=L12,0,\"\")))","v":""}]
["Escola de Enfermaría (Po)",27,"2014-2015",null,5,null,null,null,null,null,"Adquirir noso simuladores sanitarios para RCP neonatal e no escolar",null,null,null,null,null," elaborar unha nova RPT e lograr o incrementoRPT: relación de personal trabajador y su publicación junto a los presupuestos anuales",null,null,null,null,null,null,null,null,null,null,null,null,null,null,null,3,"",""]
["Escola de Enfermaría (Po)",26,"2014-2015",null,4,null,null,"Dar continuidade ao plan estratéxico para incrementar o número e cualificación do PDI","Criterio de Recursos Humanos do seguimiento, no conforme.","Planificar un aumento progresivo do númeo e cualificación do profesorado.","Presentar unha nova proposta ao Patronato no priemiro semestre de 2016 para abordar de novo a situación, na medida do podible e si a ley o permite","Progresivo, a partir del curso 2015-16 y en función de lo logrado",null,null,null,"2016-06-30","A propia páxina web",null,"Planificada",null,null,null,null,null,null,null,null,null,null,null,null,null,0,1,""]
["Escola de Enfermaría (Po)",25,"2014-2015","Seguimento anual das titulacións",2,"Centro",null,"Creación dunha web institucional por parte da Universidad de Vigo referida a los cuatro centros","A información que é común sobre o titulo poderíase centralizar nunha única páxina web da Universidade","Porpoñer á Universidade a posibilidade de que na páxina da que xa dispón, permita a inclusión dos aparatados: descripción do  título, xustificación, competencias..., e desde ela facer enlaces ás páxinas institucionais deos catro centros","Contaatar coa Univerisdade e valoirar opcións","2016-07-31","Os da Universidade","Coordinadora de CAlidade","O euquipo directivo","2016-06-30","Actas das reunión",null,"Planificada",null,null,null,null,null,null,null,null,null,null,null,null,null,0,1,""]
["Escola de Enfermaría (Po)",24,"2014-2015","Seguimento anual das titulacións",1,"Títulación",null,"  Mellorar a coordinación entre os catro centros que imparteon o título","Reunións de coordianción pouco eficientes","Organizar e realizar polo mneos duas reunión de coordinación ao ano ","Organziar un calendario de reunións acorde ás necesidades dos catro centros","2016-07-31","Aula concedida como ven sendo habitual polo área de calidade ","A dirección do centro","O euipo directivo","2016-06-01",null,null,"Planificada",null,null,null,null,null,null,null,null,null,null,null,null,null,0,1,""]
["Escola de Enfermaría (Po)",23,"2014-2015","SGIC (Revisión pola dirección)",7,"Centro",null,"Seguir mellorarando a participación nas enquisas de satisfacción do estudantado","Baixa participación nas enquisas de satisfación do colectivo estudiantes ","Promover a participación do alumnado nas enquisas ","Realizar entrevistas cos representantes do alumnado, delegados, membros das comisións, estudnates tutores para explicar a importancia da sua participación e que colaboren no proceso de promoción. Enviarlles un correos electrónico cando se abra a aplicación e outros recordatorios durante o proceso","2016-06-30",null,"Dirección e os coordinadores de curso","Equipo directivo","2015-12-31","Indicadores de satisfaccióm",null,"Planificada",null,null,null,null,null,null,null,null,null,null,null,null,null,3,1,""]
["Escola de Enfermaría (Po)",22,"2014-2015","SGIC (Revisión pola dirección)",3,"Centro",null,"Visualizar as evidencias a través da aplicación informática do área de calidad deUvigo","As evidencias no están dispoñibles","Dar visibilidade a través da aplicación informática para o SGIC da Uvigo ás evidencias e indicadores asociados a\ncada criterio, das que se dispoñee ata o momento.","Axjuntar documentos, pdfs, enlaces en cada procedemento do SIGC dos procesos de cada criterio, a medida que se\nvaian xerando as evidencias.","Progresivo: a partir del curso 2014-2015","O centro","Coordinadora de calidad","Coordinadora de calidad","2015-06-30","Rexistros na aplicación",null,"Realizada",null,null,null,null,null,null,null,null,null,null,null,null,null,false,{"$f":"+IF(S17=\"\",\"\",IF(S17=\"Realizada\",3,IF(S17=\"Realizada parcialmente\",2,IF(S17=\"Planificada\",1,0))))","v":3},""]
["CENTRO","Nº de Ficha de mellora","Curso académico no que se formula a acción","Programa de calidade asociado","Criterio do programa ao que se asocia","Ámbito de aplicación","Titulación (sempre que o alcance sexa titulación)","Denominación da acción de mellora","Punto débil / Análise das causas","Obxectivos","Actuacións a desenvolver","Data límite para a súa execución","Recursos / financiamento","Responsable da súa aplicación","Responsable do seguimento","Data para realizar o seguimento","Indicadores de execución ou evidencias documentais da súa implantación","Observacións","Estado / Nivel de cumprimento","Resultados obtidos","Grao de satisfacción","Accions correctoras a desenvolver","Responsable da revisión",null,null,null,null,null,null,null,null,null,0,{"$f":"+IF(S18=\"\",\"\",IF(S18=\"Realizada\",3,IF(S18=\"Realizada parcialmente\",2,IF(S18=\"Planificada\",1,0))))","v":0},0]
["Escola de Enfermaría (Po)",20,"2013-2014","Seguimento anual das titulacións",2,"Centro","Grao Enfermaría","Facilitar la información transversal al título na páxina web dando visibilidade ao documento cos diferentes indicadores do título","Os últimos resultados publicados en relación ás tasas establecidas na memoria vixente, son  os d curso 2011-2012","Añadir la evolución de los resultados obtenidos con respecto a los datos establecidos en la memoria vigente en la página\nweb del centro: publicar en la página web la evolución de los resultados obtenidos en 2012-13 y 2013-2014, con respecto aos establecidos na memoria vigente.","Publicar en la página web del centro http://www.enfermeria.depo.es, en la información del título, la evolución de los\nresultados obtenidos con respecto a los datos establecidos en la memoria vigente como medida para mejorar la\ninformación pública a todos los grupos de interés: http://www.enfermeria.depo.es/100","2015-06-30","O centro","Coordinación de calidade","Coordinación de calidade",null,"Publicado na web","Os técnicos de informatica da Deputación fixeron unha nova codificación dos enlaces das páxinas Web da Institución, e isto fixo que prácticamnte todos os enlaces da nosa web paarrecesen rotos polo que ainda que a información estaba publicad como constaba previamete, o cambio deixou moitainformación oculta e ista afectou ao informe des eguimento deste curso ","Realizada Parcialmente","Non se visibiliza a información","Baixo","Volover aintroducir información na web e arranxar os enlaces para o curos 2015-2016","Coordinadora de calidade",null,null,null,null,null,null,null,null,null,{"$f":"IF(L20=\"\",\"\",IF(AND(L20>TODAY(),S20=\"\"),3,IF(AND(L20<TODAY(),S20=\"\"),0,IF(AND(L20>TODAY(),AH19<=2),3,IF(AND(L20<=TODAY(),AH19<=2),0,IF(S20=\"\",\"\"))))))","v":false},{"$f":"+IF(S20=\"\",\"\",IF(S20=\"Realizada\",3,IF(S20=\"Realizada parcialmente\",2,IF(S20=\"Planificada\",1,0))))","v":3},""]
["Escola de Enfermaría (Po)",19,"2013-2014","SGIC (Revisión pola dirección)",2,"Centro","Grao Enfermaría","Publicar na páxina web a información referente aos recusos materiales destinados ao título","Non se visualiza ningún documento sobre os recursos materiales","Facilitar a información sobre os recursos materiales","Incluir o documento e/o presentación ppt, para a visualización da información relativa a este criterio na páxina web","2015-06-30","O centro","Coordinación de calidade","Coordinación de calidade",null,"Publicado na Web","Este enlace aparece visible na Web","Realizada","Aparece publicado na páxinba de Deputación Provincial","Bo","Non foron precisas","Coordinadora de calidade",null,null,null,null,null,null,null,null,null,false,3,""]
["Escola de Enfermaría (Po)",18,"2013-2014","Seguimento anual das titulacións",4,"Centro","Grao Enfermaría","Elaboración dun plan estratéxico para incrementar o número e cualificación do PDI","Necesita o incremento de profesores a tempo parcial","Planificar un aumento progresivo do número e cualificación do profesorado.","Organizar reunións cos responsables de RRHH da  Deputación para elaborar unha nova RPT e lograr o incremento\norzamentario necesario, se la lei o permite","Progresivo: a partires do curso 2014-2015","O centro","Dirección do cnetro","Dirección do cnetro","2014-12-31","RPT: relación de personal trabajador y su publicación junto a los presupuestos anuales","http://www.depo.es/es/info-econom-deputacion-2015/orzamento","Realizada","Aparece publicado na páxinba de Deputación Provincial","Bo","Non foron precisas","Coordinadora de calidade",null,null,null,null,null,null,null,null,null,0,2,""]
["Escola de Enfermaría (Po)",17,"2013-2014","Seguimento anual das titulacións",2,"Centro","Grao Enfermaría","Incluír na web información sobre o PDI","Non se visualiza esta información a través da web","Dar a coñecer o grao académico do profesorado do centro.","Publicar un documento coa información relativa á descrición do grao académico do PDI.","2015-06-30","O centro","Cooridnadora de caldiad","Responsable do título",null,"Documento publicado en el lugar correspondiente de la web.","Dcoumentos eliminados da Web poo cambio esctructutral dende a Diputación","Realizada parcialmente","Non se visibiliza a información","Baixo","Volover aintroducir información na web e arranxar os enlaces para o curos 2015-2016","Coordinadora de calidade",null,null,null,null,null,null,null,null,null,false,3,""]
["Escola de Enfermaría (Po)",16,"2013-2014","Seguimento anual das titulacións",4,"Centro","Grao Enfermaría","Apoio á formación continuada do PDI","Seguir mantendo o acceso gradual ao doutorado","Aumentar o acceso gradual ao doUtorado","Aumentar en 1 o número de DoUtores para o curso 2014-2015.","2015-06-30","O centro","Equipo drectivo","Equipo directivo","2014-06-01","1 doutor mais no cadro de profesorado",null,"Realizada","1 Doctor mais","Bo","Non foron precisas","Dirección",null,null,null,null,null,null,null,null,null,false,3,""]
["Escola de Enfermaría (Po)",15,"2013-2014","SGIC (Revisión pola dirección)",2,"Centro","Grao Enfermaría","Mellorar a información pública sobre as normativas específicas do centro no relativo ao TFG ","Faltan evidencias na web nalgúns apartados sobre a realización do TFG ","Publicar na web a parte da información necesaria relativa ao TFG ","Reorganizar a web e incluir un acceso directo ao Grao en enfermaría desde a páxina principal","2014-06-30","O centro","Coordinadora de calidade","Coordinadora de calidade","2014-07-31","Visibilidade na Web","Este acceso aparece viisible na Web","Realizada","Aparece un acceso directo ao grao na páxina principal http://www.enfermeria.depo.es/","Bo","Non foron precisas",null,null,null,null,null,null,null,null,null,null,false,3,""]
["Escola de Enfermaría (Po)",14,"2013-2014","Seguimento anual das titulacións",1,"Centro","Grao Enfermaría","Crear a figura do titor curricular no centro para estudantes en situacións especiais","Realiánse estas acciones de apoio sen a figura formal que lle corresponde no PAT ","Proporcionar, ao estudante en situación especial un ou unha titor de referencia para mellorar os mecanismos de apoio e orientación.","Asociar e comunicar a cada estudante en situación especial ao titor curricular que o acompañe ao longo da súa formación.","2014-09-01","O centro","Coordinadora de calidade","Coordinadora de calidade","2014-11-15","Aparecer nos rexistros do PAT",null,"Realizada","Os informes do PAT aparecen publicados  http://www.enfermeria.depo.es/plan-de-accion-titorial","Elevado","Non foron precisas","Coordinadora de calidade",null,null,null,null,null,null,null,null,null,{"$f":"IF(L26=\"\",\"\",IF(AND(L26>TODAY(),#REF!=\"\"),3,IF(AND(L26<TODAY(),#REF!=\"\"),0,IF(AND(L26>TODAY(),AH25<=2),3,IF(AND(L26<=TODAY(),AH25<=2),0,IF(#REF!=\"\",\"\"))))))","v":{"$error":"#REF!"}},{"$f":"+IF(#REF!=\"\",\"\",IF(#REF!=\"Realizada\",3,IF(#REF!=\"Realizada parcialmente\",2,IF(#REF!=\"Planificada\",1,0))))","v":{"$error":"#REF!"}},""]
["Escola de Enfermaría (Po)",13,"2013-2014","Seguimento anual das titulacións",2,"Centro","Grao Enfermaría","Incluír na plataforma TEMA un espazo para as actividades de coordinación e do PAT","Melloorar a información con respecto ás actividades do PAT","Manter ao alumnado informado dos actos que se celebran en relación ás actividades de apoio e orientación no centro.","Establecer un espacio na plataforma de teledocencia para informar sobre as actividades programadas derivadas do PAT dexeito máis sinxelo e que facilite sua difusión entre el alumnado.","2014-12-31","O centro","Coordinadora del PAT","Coordinadora de calidade","2015-07-01","O espazo na plataforma","Esta acción non pudo ser realziada porque a apliación non dispón de espacios para esto","Realizada","Non se pudo realizar a acción","Baixo","No é posible xa que a aplicación non o permite","Coordiandora de calidade",null,null,null,null,null,null,null,null,null,{"$f":"IF(L27=\"\",\"\",IF(AND(L27>TODAY(),S26=\"\"),3,IF(AND(L27<TODAY(),S26=\"\"),0,IF(AND(L27>TODAY(),AH26<=2),3,IF(AND(L27<=TODAY(),AH26<=2),0,IF(S26=\"\",\"\"))))))","v":false},{"$f":"+IF(S26=\"\",\"\",IF(S26=\"Realizada\",3,IF(S26=\"Realizada parcialmente\",2,IF(S26=\"Planificada\",1,0))))","v":3},""]
["Escola Universitaria de  Enfermaría de Pontevedra",12,"2013-2014","Seguimento anual das titulacións",6,"Centro","Grao Enfermaría","Revisión de competencias pola entrada en vigor da modificación da memoria aprobada o 29 de julio de 2014","Revisar a distribución das competencias nas distintas materias","Asegurar que todas as competencias aparezan recolliidas na memoria modificada","Comprobar que todas as competencias están asociadas a unha ou outra materia ","2015-07-07","O centro","A coordinadora de calidade","Coordinadora de calidade e equipo directivo","2015-06-01","Guías docentes en DocNet 2015-2016","Elaborouse un dossier con documentación complementaria derivada desta acción","Realizada","Deberá facerse algunha modificación non sustancial da memoria modificada neste aspecto e noutros detectados durante esta acción","Medio","Plantexar reunión de coordianción das dirección dos catros centros que imparten o título","A Dirección","2016-06-30",null,null,null,null,null,null,null,null,false,{"$f":"+IF(S27=\"\",\"\",IF(S27=\"Realizada\",3,IF(S27=\"Realizada parcialmente\",2,IF(S27=\"Planificada\",1,0))))","v":3},""]
["Escola Universitaria de  Enfermaría de Pontevedra",11,"2013-2014","Seguimento anual das titulacións",1,"Centro","Grao Enfermaría","Promover a través de la web o acceso ao título para futuros estudiantes","Inexistencia de accións na web para a promoción do título","Mellorar a promoción do título a pesares da súa elevada  ademanda.","Se diseñará un espazo específico na web para o acceso de futuros estudiantes.","2015-06-30","O centro","Coordinadora de calidad","Equipo directivo","2014-11-15","Aparción da información na web","O título ten un aelevada demanda e as accións para a sua promoción nos son tan prioritarias coma outras.","Realizada","Cosntancia na web","bo","Non foron precisas","Coordinadora de calidade",null,null,null,null,null,null,null,null,null,false,{"$f":"+IF(S28=\"\",\"\",IF(S28=\"Realizada\",3,IF(S28=\"Realizada parcialmente\",2,IF(S28=\"Planificada\",1,0))))","v":3},""]
["Escola Universitaria de  Enfermaría de Pontevedra",10,"2013-2014","Seguimento anual das titulacións",1,"Centro","Grao Enfermaría","Firmar novos convenios para a mobilidade","Son escasos os convenios firmados no curso pasado","Firmar polo menos dous convenios máis","Iniciar de novo ás relación coa ORI","2014-12-31","Os do centro","Coordinadora das relación internacionais no centro","Coordinadora de calidade","2014-09-01","Publicación na web","Enfermaría non era un título universitario en moitos países da UE, polo que optamos por restrinxir temporalmente os convenios a países onde xa era universitaria a diplomatura.","Realizada","Constancia na Web","Bo","Non foron precisas","Coordinadora de calidade",null,null,null,null,null,null,null,null,null,false,{"$f":"+IF(S29=\"\",\"\",IF(S29=\"Realizada\",3,IF(S29=\"Realizada parcialmente\",2,IF(S29=\"Planificada\",1,0))))","v":3},""]
["Escola Universitaria de  Enfermaría de Pontevedra",9,"2013-2014","Seguimento anual das titulacións",2,"Centro","Grao Enfermaría","Publicar na web o convenio de prácticas clínicas (Deputación-Sergas) da titulación de Graduado/a en Enfermaría por la  Uvigo.","o convenio so está publicado a Memoria vixente","Incorporar na web o convenio de prácticas clínicas","Incluír o pdf do convenio firmado no apartado da web destinado ás prácticas clínicas","2014-12-31","Os do centro","Coordinadora de prácticas","Coordinadora de calidade","2014-06-01","Visualización do pdf","Este acceso aparece viisible na Web","Realizada","Documento visible en http://www.enfermeria.depo.es/practicas-clinicas","Elevado","Non foron precisas","Coordinadora de calidade","2014-09-02",null,null,null,null,null,null,null,null,false,{"$f":"+IF(S30=\"\",\"\",IF(S30=\"Realizada\",3,IF(S30=\"Realizada parcialmente\",2,IF(S30=\"Planificada\",1,0))))","v":3},""]
["Escola Universitaria de  Enfermaría de Pontevedra",8,"2013-2014","Seguimento anual das titulacións",2,"Centro","Grao Enfermaría","Mellorar na web a accesibilidade á información das normativas específica do centro no relativo ao TFG e ás prácticas clínicas","Dificultade de acceso ás normativas xa publicadas para a realización do TFG e as prácticas clínicas.","Acceder con facilidade á información relativa ao TFG e ás prácticas clínicas","Reorganizar a web e incluir un acceso directo aos horarios e proba avaliables desde a páxina principal.","2014-06-30","Os do centro","Coordinadora de calidade","Coordinadora de calidade","2014-06-30","Aparición do apartado desde a páxina principal da web","Este acceso aparece viisible na Web ","Realizada","http://www.enfermeria.depo.es/125 y en http://www.enfermeria.depo.es/126","Alto","Non foron precisas","Coordiandora de calidade",null,null,null,null,null,null,null,null,null,false,{"$f":"+IF(S31=\"\",\"\",IF(S31=\"Realizada\",3,IF(S31=\"Realizada parcialmente\",2,IF(S31=\"Planificada\",1,0))))","v":3},""]
["Escola Universitaria de  Enfermaría de Pontevedra",7,"2012-2013","Seguimento anual das titulacións",3,"Centro",null,"Incentivar o nivel de participación dos diferentes colectivos ao profesorado e representantes do alumnado na mellora da calidade","Disminución do índice de participación do profesorado e do estudantado nas enquisas de satisfacción","Mellorar o nivel de participación nos diferentes colectivos para implicarse na mellora da calidade","Enviar o informe de seguimento do curso 2012/2013 e o informe provisional realizado pola ACSUG, ao profesorado e\nrepresentantes do alumnado, para que realicen as aportacións que estimen oportunas.\nReunir aos estudantes para explicar o sentido e os resultados das enquisas que realizan.","07/07/02014","Centro","Coordinadora de calidade","Equipo directivo","2014-07-07","Indicadores de participaión",null,"Realizada","Elevouse o nivel de aprticipación nos dou colectivos","Alto","Non foron precisas","Coordinadora de calidade",null,null,null,null,null,null,null,null,null,false,{"$f":"+IF(S32=\"\",\"\",IF(S32=\"Realizada\",3,IF(S32=\"Realizada parcialmente\",2,IF(S32=\"Planificada\",1,0))))","v":3},""]
["Escola Universitaria de  Enfermaría de Pontevedra",6,"2013-2014","Seguimento anual das titulacións",2,"Centro","Grao Enfermaría","Mellorar na web a accesibilidade á información xa existente.","Dificultade de acceso a algúns apartados da información existente na web","Acceder directamente desde a páxina de inicio a toda a información publica relevante para os diferentes grupos de interese","Reorganizar a web e incluír os accesosdirectoa desde a páxina principal  a Faitic e ao PAT","2014-07-31","Os do propio centro","Responsable do titulo","Coordinadora de calidad","2013-11-15","Aparición del apartado en la página de web","Este acceso aparece viisible na Web","Realizada","Aparece un acceso directo ao grao na páxina principal http://www.enfermeria.depo.es/","Satisfactorio","Non foron precisas","Coordinadora de calidade",null,null,null,null,null,null,null,null,null,false,{"$f":"+IF(S33=\"\",\"\",IF(S33=\"Realizada\",3,IF(S33=\"Realizada parcialmente\",2,IF(S33=\"Planificada\",1,0))))","v":3},""]
["Escola Universitaria de  Enfermaría de Pontevedra",5,"2012-2013","Seguimento anual das titulacións",5,"Centro",null,"Instalar no centro duas líneas informáticas de acceso aos recursos da intranet do Complexo Hospitalario","Valorase oprotuno o acceso á intranet do Complexo hospitalrio","Facilitar ao estudantado que, ademáis das bibliotecas coas que xa conta, dispoñan doutras duas liñas de acceso ás bases bibliográficas do Sergas, en duas aulas-seminario do centro, para uso preferente dos estudiantes no traballo de fin de grao.","Establecer un acordo co Complexo Universitario de Pontevedra a insyalación no centro das novas liñas informáticas de acceso á intranet","2013-12-31","Los del centro","Coordinadora de calidad","Responsable do titulo","2013-11-30","Instalar as duas tomas",null,"Realizada","Recollido como incremento  dos recursos materiais","Elevado","Non foron precisas","Coordinadora de calidade",null,null,null,null,null,null,null,null,null,false,{"$f":"+IF(S34=\"\",\"\",IF(S34=\"Realizada\",3,IF(S34=\"Realizada parcialmente\",2,IF(S34=\"Planificada\",1,0))))","v":3},""]
["Escola Universitaria de  Enfermaría de Pontevedra",4,"2012-2013","Seguimento anual das titulacións",1,"Centro",null,"Iniciar a mobilidade co programa Erasmus, en colaboración coa ORI","A mobilidade está prevista desde o segundo semestre do terceiro curso e se debe iniciar para o curso 2013-2014","Firmar convenios de colaboración e intercambio polo menos para estudiantes para o curso 2013-2014, en colaboración coa oficina de Relacións internacionais da Universidad de Vigo (ORI) e que o estudiantado poida optar nas convocatorias dese mesmo curso académico. ","Establecer un mínimo de dos convenios de colaboración para a mobilidade, dentro do programa Erasmus, inicialmente para estudantes e coa posibilidade de intercambio de profesores y PAS.","2013-12-01","Os do centro","A coordinadora das relacións internacionais no cnetro","A responsable do título","2013-11-13","Publicación dos convenios na páxina webIndicadores do SIGC_ seguemento",null,"Realizada","Participou Unha alumna no curso seguinte","Elevado","Darlle máis publicidade ao programa","Responsable do título","2013-12-31",null,null,null,null,null,null,null,null,false,3,""]
["Escola Universitaria de  Enfermaría de Pontevedra",3,"2012/2013","Seguimento anual das titulacións",1,"Centro",null,"Promoción da profesión Enfermera/o, a imaxe da EUE e o acceso ao titulo no noso centro","Descoñecemento na contorna das actividades da Escola","Mellorar a imaxe do Centro con accións de interese para a cidadanía. Realizar sesións formativas en reanimación cardiopulmonar básica, RCP_B e manexo do DESA.","Sesións formativas dirixidas aos adestradores e  xogadores dun dos clubs deportivos da cidade de Pontevedra, nas instalaciones deportivas e impartidas polos estudiantes guiados e supervisados polo profesorado coordinador","2013-12-31","Do propio Centro: material para simulacións clínicas ","Profesores coordinadores da actividad","Responsable do título","2013-07-01","Publicación na prensa local e no DUVI ","Esta acción foi aprobada no centro previa a sua realización","Realizada","A partires desta acción programáronse outras novas a demanda da cidadanía/institucións/ asociacións","Elevado","Non foron precisas","Equipo directivo","2013-11-15",null,null,null,null,null,null,null,null,false,3,""]
["Escola Universitaria de  Enfermaría de Pontevedra",2,"2012-2013","Seguimento anual das titulacións",1,"Centro",null,"Revisión da avaliación das prácticas clínicas a proposta razoada do estudantado","A ponderación das probas de simulación no total das probas avaliables considerase elevada","Revisar a ponderación das probas avaliables das cinco materias de prácticas clínicas atendendo á proposta","Refacer a avaliación das cinco materias das prácticas clínicas baixando o peso das probas de simulación e subindo o da observación sistemática ata un 50%","2013-07-15","Os do propio centro","A coordinadora de prácticas clínicas","Comisión de Calidade","2013-12-15","Constancia nas guía docentes do curso 2013-2014: recolleránse os cambios no 100% nas guías docentes destas materias","Esta acción foi plantexada polos delegados/as de estudiantes e aprobada nas reunión da Comisión de prácticas clínicas e aprobada na Xunta de Centro","Realizada","Aparece recollida a nova avaliación no 100% das guías docentes afectadas","Elevado","Non foron precisas","Responsable do título","2013-07-07",null,null,null,null,null,null,null,null,"",3,""]
["Escola Universitaria de  Enfermaría de Pontevedra",1,"2012-2013","Seguimento anual das titulacións",4,"Centro",null,"Apoio á formación continuada do PDI","Aumentar o acceso gradual ao doutorado","Seguir mantendo o acceso gradual a doutorado","Aumentar en 1 o número de doutores para o curso 2013-2014.","31/12/203","Os do centro","A dirección do centro","A Dirección do centro",null,"Obtención do título de doutor",null,"Realizada","Incorporación dun novo Doutor","Alto","Non foron precisas","Equipo directivo","2013-11-15",null,null,null,null,null,null,null,null,{"$f":"IF(#REF!=\"\",\"\",IF(AND(#REF!>TODAY(),S38=\"\"),3,IF(AND(#REF!<TODAY(),S38=\"\"),0,IF(AND(#REF!>TODAY(),AH38<=2),3,IF(AND(#REF!<=TODAY(),AH38<=2),0,IF(S38=\"\",\"\"))))))","v":{"$error":"#REF!"}},3,{"$f":"+IF(#REF!=\"\",\"\",IF(P38=\"\",\"\",IF(P38>=#REF!,0,\"\")))","v":{"$error":"#REF!"}}]